Cogmind - Beta 12 *** ADVENTURER MODE // 2023.12.12 @ 06:36:30 // Winter2019/RPGLIKE Player: PersmaticCoreSerial_K4E2 Result: Smashed by cave-in Performance ------------- Evolutions (1) 500 Regions Visited (3) 600 Robots Destroyed (22) 110 Value Destroyed (593) 593 Prototype IDs (3) 60 Alien Tech Used (0) 0 Bonus (0) 0 TOTAL SCORE: 1863 Bonus ------- None Cogmind --------- Core Integrity 0/800 Matter 123/300 Energy 158/160 System Corruption 4% Temperature Cool (0) Movement Rolling (80) Location -9/Materials Parts ------- > --- POWER (1) -------- Light Nuclear Core > --- PROPULSION (2) --- Wheel Wheel > --- UTILITY (5) ------ Structural Scanner Sensor Array Improved Signal Interpreter Improved Terrain Scanner ECM Suite > --- WEAPON (3) ------- Beam Rifle Rocket Launcher Hammer > --- INVENTORY (2) ---- (None) Peak State ------------ > --- POWER ------------ Light Nuclear Core > --- PROPULSION ------- Wheel Wheel > --- UTILITY ---------- Structural Scanner Sensor Array Improved Signal Interpreter Improved Terrain Scanner ECM Suite > --- WEAPON ----------- Beam Rifle Rocket Launcher Hammer > --- INVENTORY -------- (None) [Rating: 19] Favorites ----------- Power Light Nuclear Core Engine Light Ion Engine Power Core Light Nuclear Core Propulsion Wheel Wheel Wheel Utility Improved Terrain Scanner Device Improved Terrain Scanner Processor Improved Signal Interpreter Protection Light Armor Plating Weapon Hammer Energy Gun Medium Laser Launcher Rocket Launcher Special Weapon Mining Laser Impact Weapon Hammer Special Melee Weapon Datajack Build | -11 -10 -10 -9 ------- Run | Jun Mat Min Mat Slots Evolved 7 | 4 . 1 2 Power . | . . . . Propulsion 1 | 1 . . . Utility 4 | 2 . 1 1 Weapon 2 | 1 . . 1 Parts Attached 30 | 9 11 4 6 Power 3 | 1 2 . . Engine 2 | 1 1 . . Core 1 | . 1 . . Reactor . | . . . . Propulsion 5 | 3 1 . 1 Treads . | . . . . Leg . | . . . . Wheel 5 | 3 1 . 1 Hover . | . . . . Flight . | . . . . Utility 9 | 2 2 2 3 Device 5 | 2 2 . 1 Storage . | . . . . Processor 2 | . . 1 1 Hackware . | . . . . Protection 2 | . . 1 1 Artifact . | . . . . Weapon 13 | 3 6 2 2 Energy Gun 3 | 2 . . 1 Energy Cannon . | . . . . Ballistic Gun . | . . . . Ballistic Cannon . | . . . . Launcher 3 | . 2 . 1 Special Weapon 3 | 1 1 1 . Impact Weapon 2 | . 1 1 . Slashing Weapon . | . . . . Piercing Weapon . | . . . . Special Melee Weapon 2 | . 2 . . Unidentified Prototypes . | . . . . Parts Lost 1 | . . . 1 Power . | . . . . Propulsion . | . . . . Utility . | . . . . Weapon 1 | . . . 1 Highest Loss Streak 1 | . . . 1 To Critical Strikes . | . . . . Average Slot Usage (%) 97 | . 98 97 94 Engine 3 | . 9 . . Core 7 | . 2 11 9 Wheel 22 | . 24 23 18 Device 34 | . 36 34 30 Processor 5 | . . 3 13 Energy Gun 3 | . 8 . 1 Launcher 1 | . . . 3 Special Weapon 3 | . 8 . . Impact Weapon 7 | . 3 11 9 Special Melee Weapon 6 | . 3 11 5 Naked Turns . | . . . . Heaviest Build 19 | 9 11 14 19 Greatest Support 26 | 26 20 20 20 Greatest Overweight (x) 1 | . . . 1 Average Overweight (x) . | . . . . Largest Inventory Capacity 2 | 1 1 1 2 Average Capacity 1 | . 1 1 1 Most Carried 2 | 1 1 1 2 Average Carried . | . . 1 . Final Capacity 2 | 1 1 1 2 Final Carried 1 | 1 1 1 . Class Distribution -------------------- 69% | Hacker-Assassin 30% | Hacker-Mutant Dominant Class ---------------- Hacker-Mutant | -10/Materials Hacker-Assassin | -10/Mines Hacker-Assassin | -9/Materials Resources | -11 -10 -10 -9 ----------- Run | Jun Mat Min Mat Matter Collected 492 | 280 152 40 20 Remotely . | . . . . Salvage Created 587 | 166 204 32 185 Parts 42 | 15 10 1 16 Haulers Intercepted . | . . . . Recyclers Shooed . | . . . . Parts Field Recycled . | . . . . Retrieved Matter . | . . . . Parts Self-Destructed . | . . . . Prevented . | . . . . Kills | -11 -10 -10 -9 ------- Run | Jun Mat Min Mat Combat Hostiles Destroyed 15 | . 4 3 8 Melee 3 | . . 2 1 Guns 1 | . 1 . . AOE 7 | . 3 . 4 Classes Destroyed 7 | 2 2 1 2 Tunneler 4 | 4 . . . Recycler 1 | 1 . . . Watcher 2 | . 1 . 1 Swarmer 3 | . . 3 . Grunt 8 | . 4 . 4 Duelist 1 | . . . 1 Sentry 3 | . . . 3 Best Kill Streak 3 | 3 3 2 3 Combat Bots Only 3 | . 2 2 3 Max Kills in Single Turn 2 | 1 2 1 1 Gunslinging . | . . . . Exploded 1 | . 1 . 1 Melee 1 | . . 1 1 Uniques/NPCs Destroyed . | . . . . Combat | -11 -10 -10 -9 -------- Run | Jun Mat Min Mat Damage Taken 1191 | . 59 92 1040 Core 968 | . 48 72 848 Absorbed by Shields . | . . . . Redirected to Core 670 | . 34 57 579 Core Remaining (%) 95 | 100 . 90 . Volleys Fired 41 | 7 22 . 12 Largest 2 | 2 2 . 2 Hottest 100 | 90 100 . 89 Shots Fired 51 | 14 24 . 13 Gun 22 | 14 7 . 1 Cannon . | . . . . Launcher 15 | . 3 . 12 Special 14 | . 14 . . Kinetic . | . . . . Thermal 29 | 7 21 . 1 Explosive 15 | . 3 . 12 Electromagnetic 7 | 7 . . . Robot Hit Streak 9 | 9 8 . 3 Robot Miss Streak 1 | . 1 . 1 Penetration Max . | . . . . Secondary Targets . | . . . . Shots Hit Robots 47 | 9 10 7 21 Core Hits 25 | 5 9 2 9 Critical Kills 1 | . . 1 . Critical Parts Destroyed 4 | . . 1 3 Critical Strikes 7 | 1 . 2 4 Burn 1 | 1 . . . Smash 6 | . . 2 4 Melee Attacks 58 | . 7 11 40 Impact 55 | . 6 9 40 Slashing . | . . . . Piercing . | . . . . Sneak Attacks 3 | . 1 2 . Combat Hostiles . | . . . . Follow-up Attacks . | . . . . Damage Inflicted 1234 | 124 272 145 693 Guns 212 | 124 88 . . Cannons . | . . . . Explosions 484 | . 184 . 300 Melee 538 | . . 145 393 Ramming . | . . . . Kinetic . | . . . . Thermal 114 | 26 88 . . Explosive 484 | . 184 . 300 Electromagnetic 98 | 98 . . . Impact 538 | . . 145 393 Slashing . | . . . . Piercing . | . . . . Highest Corruption 4 | . . . 4 Average Corruption 4 | . . . 4 Corruption Purged . | . . . . Corruption Blocked . | . . . . Effects 4 | . . . 4 Message Errors 1 | . . . 1 Matter Fused 2 | . . . 2 Alerts 1 | . . . 1 Overload Shots . | . . . . Overflow Damage 134 | . . 31 103 Projectiles . | . . . . Explosions . | . . . . Melee 134 | . . 31 103 Knockbacks 1 | . . . 1 Impact 1 | . . . 1 Kinetic . | . . . . Secondary . | . . . . Self-Inflicted Damage 47 | . . . 47 Shots 2 | . . . 2 Rammed . | . . . . Targets Rammed . | . . . . Kicked . | . . . . Crushed . | . . . . Highest Temperature 120 | 120 92 . 39 Average Temperature 29 | 56 23 . 9 Received Heat Transfer 264 | . 42 9 213 Siege Activations . | . . . . Robots Corrupted . | . . . . Combat Hostiles . | . . . . Parts Fried 7 | . . 2 5 Impact Corruptions 9 | . . 2 7 Robots Melted . | . . . . Combat Hostiles . | . . . . Parts Melted 2 | 1 1 . . Heat Transferred 407 | 148 259 . . Parts Sabotaged . | . . . . Parts Stolen . | . . . . Parts Stripped . | . . . . Power Chain Reactions . | . . . . Missiles Intercepted . | . . . . Alert | -11 -10 -10 -9 ------- Run | Jun Mat Min Mat Peak Influence 375 | 25 189 145 375 Initial 42 | . 13 42 . Average 97 | 8 76 70 170 Maximum Alert Level 1 | . . . 1 Low Security (%) 87 | 100 100 100 55 Level 1 12 | . . . 44 Level 2 . | . . . . Level 3 . | . . . . Level 4 . | . . . . Level 5 . | . . . . High Security . | . . . . Max Security . | . . . . Squads Dispatched 3 | . 2 . 1 Investigation 3 | . 2 . 1 Extermination . | . . . . Reinforcement . | . . . . Assault . | . . . . Garrison . | . . . . Intercept . | . . . . Searches Triggered . | . . . . Construction Impeded . | . . . . Haulers Reinforced . | . . . . Active Scanning Responses . | . . . . Cargo Convoy Interrupts . | . . . . Stealth | -11 -10 -10 -9 --------- Run | Jun Mat Min Mat Distress Signals 3 | . 1 . 2 Communications Jammed . | . . . . Distress Signals . | . . . . Times Spotted 35 | . 13 6 16 Peak Tracking Total 9 | . 6 3 9 Tactical Retreats 7 | . 2 1 4 Traps | -11 -10 -10 -9 ------- Run | Jun Mat Min Mat Traps Triggered 1 | . 1 . . Indirectly . | . . . . Trap Hack Attempts . | . . . . Triggered . | . . . . Disarmed . | . . . . Reprogrammed . | . . . . Reused . | . . . . Traps Extracted . | . . . . Installed . | . . . . Triggered . | . . . . Machines | -11 -10 -10 -9 ---------- Run | Jun Mat Min Mat Machines Disabled 3 | . . . 3 Max in Single Turn 2 | . . . 2 Machines Repaired . | . . . . Machines Sabotaged . | . . . . Overloaded Fab Kills . | . . . . Hacking | -11 -10 -10 -9 --------- Run | Jun Mat Min Mat Machines Accessed 10 | . 8 . 2 Terminals 7 | . 6 . 1 Fabricators . | . . . . Repair Stations . | . . . . Recycling Units 2 | . 2 . . Scanalyzers 1 | . . . 1 Garrison Access . | . . . . Total Hacks 29 | . 26 . 3 Successful 22 | . 20 . 2 Failed 6 | . 5 . 1 Catastrophic . | . . . . Database Lockouts 1 | . 1 . . Manual 22 | . 19 . 3 Terminals 24 | . 22 . 2 Fabricators . | . . . . Repair Stations . | . . . . Recycling Units 4 | . 4 . . Scanalyzers 1 | . . . 1 Garrison Access . | . . . . Terminal Hacks 10 | . 10 . . Record 1 | . 1 . . Part Schematic 2 | . 2 . . Prototype ID Bank 3 | . 3 . . Branch Access Points 1 | . 1 . . Terminal Index 1 | . 1 . . Dispatch Records 1 | . 1 . . Zone Layout 1 | . 1 . . Fabricator Hacks . | . . . . Repair Station Hacks . | . . . . Recycling Unit Hacks 2 | . 2 . . Report Inventory 2 | . 2 . . Scanalyzer . | . . . . Garrison Access Hacks . | . . . . Unauthorized Hacks 10 | . 8 . 2 Terminals 7 | . 6 . 1 Botnet 7 | . 6 . 1 Fabricators . | . . . . Repair Stations . | . . . . Recycling Units 2 | . 2 . . Tunnel 2 | . 2 . . Scanalyzers 1 | . . . 1 Extract 1 | . . . 1 Garrison Access . | . . . . Data Cores Recovered . | . . . . Used . | . . . . Hacking Detections 8 | . 7 . 1 Full Trace Events . | . . . . Feedback Events . | . . . . Feedback Blocked . | . . . . Robot Schematics Acquired . | . . . . Robots Built . | . . . . Authchips . | . . . . Time . | . . . . Total Robot Build Rating . | . . . . Part Schematics Acquired 3 | . 2 . 1 Parts Built . | . . . . Authchips . | . . . . Time . | . . . . Total Part Build Rating . | . . . . Parts Repaired . | . . . . Time . | . . . . Parts Recycled . | . . . . Recycled Matter . | . . . . Retrieved Matter . | . . . . Retrieved Components . | . . . . Parts Scanalyzed . | . . . . Part Schematics Acquired . | . . . . Parts Damaged . | . . . . Bothacking | -11 -10 -10 -9 ------------ Run | Jun Mat Min Mat Used RIF Installer . | . . . . Robots Hacked 3 | . 1 2 . Non-combat 1 | . 1 . . Combat 2 | . . 2 . Robot Hacks Applied 3 | . 1 2 . parse_system 2 | . . 2 . no_distress 1 | . 1 . . Relay Couplers Released . | . . . . Fabnet Peak Effective % . | . . . . Robots Rewired . | . . . . Allies Hacked . | . . . . Hacks Repelled . | . . . . Allies | -11 -10 -10 -9 -------- Run | Jun Mat Min Mat Total Allies 1 | . . 1 . Largest Group 1 | . . 1 . Highest-Rated Group 31 | . . 31 . Highest-Rated Ally 31 | . . 31 . Total Orders . | . . . . Ally Attacks 3 | . . 3 . Total Damage 38 | . . 38 . Kills . | . . . . Allies Corrupted . | . . . . Allies Melted . | . . . . Intel | -11 -10 -10 -9 ------- Run | Jun Mat Min Mat Robot Analysis Total . | . . . . Derelict Logs Recovered 2 | . . 2 . Drone Launches . | . . . . Drone Recoveries . | . . . . Exploration | -11 -10 -10 -9 ------------- Run | Jun Mat Min Mat Turns Passed 1690 | 71 635 524 460 Spaces Moved 1220 | 39 465 481 235 Core 1 | 1 . . . Treads . | . . . . Legs . | . . . . Wheels 1219 | 38 465 481 235 Hover . | . . . . Flight . | . . . . Fastest Speed 50 | 50 80 80 80 Average Speed 80 | 83 80 80 80 Slowest Speed 100 | 100 80 80 95 Overloaded Moves . | . . . . Propulsion Burnouts . | . . . . Robots Hopped . | . . . . Cave-ins Triggered 2 | . . . 2 Exploration Rate (%) 44 | 4 74 79 21 Regions Visited 3 Branch Regions 1 Pre-discovered Areas 3 | . 2 1 . Known Exits Taken 1 | . 1 . . Unknown Exits Taken 2 | 1 . 1 . Scrap Searched 1 | . . 1 . Spaces Dug 49 | . 17 2 30 Terrain Destroyed 151 | . 40 2 109 Melee 20 | . 5 2 13 Projectile 12 | . 12 . . AOE 119 | . 23 . 96 Terrain Rammed . | . . . . Walls Destroyed . | . . . . Machines Disabled . | . . . . Actions | -11 -10 -10 -9 --------- Run | Jun Mat Min Mat Total 1747 | 60 662 602 423 Wait 369 | . 148 102 119 Move 1216 | 38 464 480 234 Hop . | . . . . Pick Up 10 | 3 3 . 4 Fast Attach 21 | 8 8 4 1 Attach 6 | 1 . . 5 Detach . | . . . . Swap 3 | . 3 . . Drop 14 | 3 7 3 1 Fire 41 | 7 22 . 12 Melee 58 | . 7 11 40 Ram . | . . . . Kick . | . . . . Crush . | . . . . Escape Stasis . | . . . . Rewire . | . . . . Trap . | . . . . Miscellaneous 9 | . . 2 7 Route ------- -11/Junkyard -10/Materials (discovered 3 exits: *Mat x2 / *Min) -10/Mines (discovered 2 exits: *Mat x2) -9/Materials (discovered 1 exit: [*Mat]) History --------- Turn | Location | Event 4 | -11/Junkyard | Upgraded with Propulsion slot (x1) 4 | -11/Junkyard | Upgraded with Utility slot (x2) 4 | -11/Junkyard | Upgraded with Weapon slot (x1) 16 | -11/Junkyard | Discovered new exit (range 15) 72 | -11/Junkyard | Entered Materials 178 | -10/Materials | Discovered new exit (range 8) 206 | -10/Materials | Identified exit to Mines 270 | -10/Materials | Discovered new exit (range 9) 305 | -10/Materials | Build established: Hacker-Mutant 372 | -10/Materials | Central database locked down 578 | -10/Materials | Discovered new exit (range 15) 707 | -10/Materials | Entered Mines 713 | -10/Mines | Learned location of Storage (-7) 756 | -10/Mines | Received a Mining Laser from a helpful Derelict 827 | -10/Mines | Build established: Hacker-Assassin 876 | -10/Mines | Learned Materials garrison access intel 878 | -10/Mines | Discovered new exit (range 8) 901 | -10/Mines | Reached level 2 907 | -10/Mines | Upgraded with Utility slot (x1) 1014 | -10/Mines | Joined a pair of Derelicts in attacking an 0b10 outpost 1050 | -10/Mines | Discovered new exit (range 16) 1231 | -10/Mines | Entered Materials 1233 | -9/Materials | Reached level 3 1234 | -9/Materials | Upgraded with Utility slot (x1) 1417 | -9/Materials | Reached level 4 1419 | -9/Materials | Upgraded with Weapon slot (x1) 1503 | -9/Materials | Crushed by falling debris 1503 | -9/Materials | Core integrity fell below 50% 1591 | -9/Materials | Discovered new exit (range 11) 1666 | -9/Materials | Core integrity fell below 20% 1691 | -9/Materials | Crushed by falling debris 1691 | -9/Materials | Smashed by cave-in Last Messages --------------- >>Force(Extract) EXTRACTED[Targeting Computer] 01608_ ALERT: Suspicious activity at Scanalyzer M002. Dispatching Investigation squad. 01643_ System corrupted: Matter fused (-5). 01648_ U-05 Engineer lays Concrete. 01660_ G-34 Mercenary destroyed. 01662_ Nuclear Reactor explodes. 01665_ Critical hit (Burn: +37). 01667_ The unstable cave ceiling collapses. 01671_ G-34 Mercenary destroyed. 01671_ Atomic Centrifuge disabled. 01672_ The unstable cave ceiling collapses. 01674_ System corrupted: Matter fused (-5). 01676_ Y-45 Defender destroyed. 01682_ The unstable cave ceiling collapses. 01687_ U-05 Engineer lays Concrete. 01689_ R-06 Scavenger collects Aluminum Leg. 01691_ The unstable cave ceiling collapses. 01691_ Crushed by falling debris. Map ----- +----------------------------------------------------+ | ????????????????### | | ?????????????????## "T" # | | ?????????????????## """ # | | ?????????????????## # # # # | | ?????????????????## u ###### | | ??????????????? ### ###r###### | | ???????????????#?## ###u###### | | ???????????????###### ######## ###### | | ??????????????#######r## # # ###### | | ????????????# ?###### ###### | | ?????????##???####### # ###### | | ?????????#? ? ### ####? | | ?????????## ? ### u = ##### | | ???????? ## Y ###### | | ?????? ## ? ### # %%! ##### | | ??#? ## ### ##### | | ???######?## ##### #### | | ??? # ####### # | | ? # + #### r* " # | | ??? # ##### = # | | ? # # = # | | " #? #######+###+## # | | ? ? ## # | | ??# ? ## " """ ## # ### | | ?## ## T """ ##### | | ?## ? ## " """ @ ##### | | ############# # ####### | | ####################################? | | ###! # ############## | | ### """" "" # ############## | | ?## """" """# ###########?# | | ### """" S"# ############# | | ### # ############# | | ##########+####### ############## | | ?######## w #######?##?##? | | ???####?# < ##########???? | | ? #######?#??#?# | | ???#######?##### #######?#??#??# | | ###?## # ######????##?## | | ?##??#? # %#####???#??#??? | | ????#??? ?## ####?#??#??#???? | | ???#???? ? ? #####?###????#???????? | | ?????#??"? ??"????##?#?????????????? | | ????????"" ???"#?#?#????????????????? | | ???????"?" ???"?????????????????????? | | ??????????? ?????????????????????? | | ????????????????????????????????????? | | | | | | | +----------------------------------------------------+ Best States ------------- Heat Dissipation 25 Energy Generation 14 Energy Capacity 160 Matter Stores 300 Matter Capacity 300 Sight Range 16 Robot Scan Range 22 Terrain Scan Range 16 Terrain Scan Density 410 ECM Strength 1 Armor Coverage 150 Resistance: KI 20 Resistance: TH 20 Resistance: EX 20 Resistance: EM 20 Resistance: I 20 Resistance: S 20 Resistance: P 20 Evasion (%) 44 Offensive Hacking 25 Item Schematics ----------------- ECM Suite | -10/Materials | Hacked Signal Interpreter | -10/Materials | Hacked Targeting Computer | -9/Materials | Extracted Robot Schematics ------------------ None Fabricated ------------ Nothing Alien Tech Used ----------------- None Achievements -------------- None Challenges ------------ None RPGLIKE | -11 -10 -10 -9 --------- Run | Jun Mat Min Mat Levels Raised 3 | . . 1 2 XP Earned 9631 | 4000 835 855 3941 XP Spent 8500 | 4000 . 1450 3050 Upgrades 24 | 13 . 5 6 Propulsion Slot 1 | 1 . . . Utility Slot 4 | 2 . 1 1 Weapon Slot 2 | 1 . . 1 Core Integrity 4 | 2 . 1 1 Inventory Capacity 2 | 1 . . 1 Sensor Range 4 | 1 . 2 1 Terrain Scan Density 4 | 2 . 1 1 Hack Attack % 3 | 3 . . . Protomatter Created 165 | . . 16 149 Integrity Restored 194 | . . 48 146 Core 151 | . . 48 103 Parts 43 | . . . 43 Protomatter Decayed 49 | . . . 49 Game ------ Seed CatalystSpreadBeam Manual? 0 Play Time 00:34:34 Cumulative 70.8 hours Start 2023.12.12 @ 01:46:33 End 2023.12.12 @ 06:36:30 Sessions 1 Manual Loads 0 Difficulty Adventurer Special Mode Winter2019/RPGLIKE Game No. 31 Rogue 0 Adventurer 31 Explorer 0 Win Type - Total 0 Types 0/0/0/0/0/0/0/0/0 Lore% 26 Gallery% 44 Achievement% 41 Wizard Run 0 Options --------- ASCII 0 Keyboard 0 Movement Mouse Keybinds 0 Fullscreen 0 Font 16/SmallcapsGlow Map View 76x50 Tactical HUD 1 Map Filters NONE Filters NONE Steam 1 RUN: 5f52460b-aef4-4327-aeeb-de4d8ef59454